bitfinex/quotes_ETHUSD_20260225
["timestamp","ask_amount","ask_price","bid_price","bid_amount"]
[1772055309967,3.22148182,2096.0,2093.8,4.74965]
[1772055310264,3.22148182,2096.0,2093.7,4.77606978]
[1772055310466,1.43088279,2096.8,2093.7,4.77606978]
[1772055310467,1.639,2097.9,2095.8,3.22148182]
[1772055310674,1.639,2097.9,2095.4,0.08192]
[1772055310675,1.639,2097.9,2097.1,3.223481]
[1772055310857,1.639,2097.9,2097.2,3.223481]
[1772055311059,0.00878737,2099.0,2096.7,3.22148182]
[1772055311364,9.525387,2098.5,2096.4,0.31879147]
[1772055311566,9.525387,2098.5,2096.4,4.782801]
[1772055311772,9.525387,2098.5,2096.6,20.12]
[1772055311773,4.527163,2098.5,2096.6,20.12]
[1772055311972,4.76530543,2098.6,2096.6,20.12]
[1772055312450,12.709507,2098.5,2096.6,20.12]
[1772055312639,2.342006,2098.4,2096.5,20.831824]
[1772055312844,3.5154,2098.5,2096.5,20.831824]
[1772055313143,3.844195,2098.5,2096.5,20.831824]
[1772055313344,4.76530543,2098.6,2096.5,24.05330582]
[1772055313568,9.589108,2098.5,2096.7,20.831824]
[1772055313866,1.19138391,2098.4,2096.8,1.19229301]
[1772055314070,1.19138391,2098.4,2096.9,4.981876]
[1772055314244,1.19138391,2098.4,2096.9,3.510095]
[1772055314467,7.98701746,2098.8,2096.9,3.510095]
[1772055314468,4.501,2100.0,2098.3,3.22148182]
[1772055314716,3.22148182,2101.1,2101.0,1.91]
[1772055314993,30.0,2100.9,2097.6,0.984]
[1772055315189,0.54467278,2101.0,2097.8,23.996744]
[1772055315190,4.52007,2100.8,2097.8,23.996744]
[1772055315388,0.54467278,2101.0,2100.0,3.083]
[1772055315590,7.389493,2100.9,2097.9,25.035824]
[1772055315801,13.021065,2100.8,2098.0,23.914824]
[1772055315980,1.19007949,2100.7,2098.2,23.914824]
[1772055316173,2.81807949,2100.7,2098.5,12.257444]
[1772055316394,8.949385,2100.6,2098.2,15.730275]
[1772055316579,3.22148182,2099.9,2097.7,23.914824]
[1772055316899,8.626837,2099.7,2097.7,23.914824]
[1772055317268,3.22148182,2099.5,2097.7,23.914824]
[1772055317495,3.22148182,2099.5,2096.8,3.22148182]
[1772055317496,3.22148182,2099.5,2097.5,23.914824]
[1772055317669,3.22148182,2099.5,2097.5,1.19188312]
[1772055317865,1.19081642,2099.4,2097.1,4.76842991]
[1772055318080,3.750688,2099.3,2097.0,23.914824]
[1772055318270,2.785589,2099.3,2097.0,23.914824]
[1772055318580,2.736242,2099.3,2097.0,23.914824]
[1772055318775,2.736242,2099.3,2097.1,23.539215]
[1772055319097,2.736242,2099.3,2097.0,23.914824]
[1772055319394,3.22148182,2099.1,2097.0,20.652359]
[1772055319695,3.22148182,2099.1,2096.9,2.750904]
[1772055319696,13.786605,2098.9,2096.9,2.750904]
[1772055319897,4.76326569,2099.5,2097.2,3.22148182]
[1772055320071,4.76326569,2099.5,2097.3,23.914824]
[1772055320072,1.621,2099.1,2097.3,23.914824]
[1772055320268,1.621,2099.1,2097.3,23.86394508]
[1772055320473,0.050878,2098.9,2097.6,3.22148182]
[1772055320771,0.050878,2098.9,2097.8,14.237028]
[1772055320972,0.050878,2098.9,2097.7,23.863946]
[1772055321215,0.54467278,2099.0,2097.7,23.863946]
[1772055321374,4.76143262,2100.3,2098.2,3.22148182]
[1772055321572,1.618,2100.2,2098.4,8.06554]
[1772055321773,1.618,2100.2,2098.4,4.1524]
[1772055321992,1.19002284,2100.8,2098.8,23.863946]
[1772055322193,1.617,2100.7,2098.9,10.802336]
[1772055322720,4.243535,2100.5,2098.8,2.916778]
[1772055322921,4.243535,2100.5,2098.8,2.19815]
[1772055323124,1.617,2100.7,2098.8,3.85715]
[1772055323326,1.617,2100.7,2098.9,23.863946]
[1772055323513,0.002,2100.6,2098.9,23.863946]
[1772055323698,0.002,2100.6,2099.2,23.863946]
[1772055323899,0.002,2100.6,2099.6,23.863946]
[1772055324204,0.002,2100.6,2099.6,16.875318]
[1772055324400,0.002,2100.6,2099.6,5.082218]
[1772055325026,2.80170206,2101.4,2099.6,5.082218]
[1772055325829,2.80170206,2101.4,2099.5,23.863946]
[1772055326030,2.80170206,2101.4,2099.7,5.443742]
[1772055326333,2.80170206,2101.4,2099.6,23.863946]
[1772055326830,3.22148182,2101.2,2099.3,21.870336]
[1772055327052,3.22148182,2101.2,2099.3,15.241269]
[1772055327214,12.166191,2100.7,2098.9,3.690785]
[1772055327409,1.18970206,2101.4,2098.4,23.863946]
[1772055327605,3.22148182,2100.9,2098.5,23.863946]
[1772055327816,3.22148182,2100.9,2098.7,23.863946]
[1772055328015,1.19002284,2100.8,2098.9,2.10974]
[1772055328234,5.445267,2100.7,2098.9,2.10974]
[1772055328425,4.381267,2100.7,2098.9,2.10974]
[1772055328626,1.19002284,2100.8,2098.9,2.10974]
[1772055328840,12.169253,2100.7,2098.9,2.10974]
[1772055329010,1.68392,2100.6,2098.8,1.19115685]
[1772055329212,1.602,2100.6,2098.8,1.19115685]
[1772055329529,1.602,2100.6,2098.9,13.426268]
[1772055329729,3.93195,2100.5,2098.9,3.40406]
[1772055330122,1.19024947,2100.4,2099.0,1.19104335]
[1772055330640,4.41173129,2100.4,2098.3,1.19144069]
[1772055330839,63.83,2131.6,2100.0,23.863946]
[1772055331037,1.18880953,2103.0,2102.3,15.02404911]
[1772055331254,1.18880953,2103.0,2100.0,9.8513017]
[1772055331255,2.145753,2102.9,2101.9,14.53937633]
[1772055331541,3.22148182,2102.8,2102.0,14.53937633]
[1772055331739,3.22148182,2102.8,2102.2,7.20208833]
[1772055331909,10.172802,2102.7,2101.2,0.39618346]
[1772055332110,10.172802,2102.7,2101.0,2.733209]
[1772055332111,3.22148182,2102.4,2101.0,2.733209]
[1772055332441,1.596,2102.3,2100.3,8.328221]
[1772055333164,1.596,2102.3,2100.4,2.0127918]
[1772055333348,16.535858,2103.6,2101.7,2.49391964]
[1772055333521,2.49391964,2102.1,2100.4,0.3707918]
[1772055333717,7.48175892,2103.2,2099.8,4.950964]
[1772055333718,2.49391964,2101.7,2099.8,4.950964]
[1772055333921,0.849,2101.6,2099.8,4.950964]
[1772055334129,1.18956985,2101.6,2100.0,8.328221]
[1772055334324,2.49391964,2102.0,2100.3,3.202056]
[1772055334615,2.49391964,2102.0,2100.2,8.328221]
[1772055334932,0.839,2103.0,2100.8,8.328221]
[1772055335124,0.839,2103.0,2101.1,8.51507724]
[1772055335323,30.0,2103.7,2101.8,2.49391964]
[1772055335648,1.42453372,2106.0,2101.2,1.94165187]
[1772055335649,0.01676848,2106.5,2105.7,30.0]
[1772055335819,19.063227,2107.3,2105.4,0.29747542]
[1772055336151,2.49391964,2106.6,2104.2,3.6819982]
[1772055336311,1.18657743,2106.9,2105.4,2.49391964]
[1772055336516,0.00877415,2109.0,2105.5,15.94699883]
[1772055336517,7.092489,2107.7,2105.5,15.94699883]
[1772055336844,4.90747916,2108.0,2105.5,15.94699883]
[1772055336845,1.647,2107.8,2106.9,0.56716522]
[1772055337064,7.092489,2107.3,2105.7,3.5763]
[1772055337246,1.34940666,2108.0,2106.0,0.29397388]
[1772055337448,1.34940666,2108.0,2104.1,4.75239996]
[1772055337449,0.00877415,2109.0,2106.1,0.27353057]
[1772055337649,0.00877415,2109.0,2104.1,4.75239996]
[1772055337650,0.00877415,2109.0,2106.2,0.29730647]
[1772055337864,3.632,2108.8,2105.1,0.24197224]
[1772055338039,3.632,2108.8,2104.1,4.75239996]
[1772055338040,1.18596065,2108.0,2103.8,0.08192]
[1772055338363,1.18596065,2108.0,2103.7,1.18838237]
[1772055338364,0.18685624,2107.9,2104.0,30.0]
[1772055338567,1.42282008,2108.5,2104.5,30.0]
[1772055338568,2.49391964,2107.0,2104.5,30.0]
[1772055338735,7.48175892,2107.6,2104.3,2.49391964]
[1772055338940,2.49391964,2107.6,2105.2,2.49391964]
[1772055339163,2.49391964,2106.9,2104.9,30.0]
[1772055339365,2.49391964,2106.1,2104.0,18.363]
[1772055339568,1.654,2106.0,2103.6,30.0]
[1772055339765,7.48175892,2107.6,2104.3,2.49391964]
[1772055339958,2.49391964,2107.2,2104.7,2.49391964]
[1772055340153,7.48175892,2108.7,2104.9,30.0]
[1772055340154,1.18669008,2106.7,2104.9,30.0]
[1772055340369,2.49391964,2106.3,2104.5,30.0]
[1772055340561,2.49391964,2105.9,2104.1,31.1881193]
[1772055340895,1.652,2105.8,2103.7,30.0]
[1772055341041,2.49391964,2105.5,2103.5,31.18848928]
[1772055341382,2.49391964,2105.8,2103.6,28.762]
[1772055341539,2.49391964,2106.4,2104.0,27.163]
[1772055341747,2.49391964,2106.4,2104.3,2.49391964]
[1772055341953,1.18669008,2106.7,2103.5,1.18848928]
[1772055341954,2.49391964,2106.1,2103.5,1.18848928]
[1772055342165,1.18736642,2105.5,2103.7,30.0]
[1772055342469,2.49391964,2104.8,2102.7,2.49391964]
[1772055342643,2.49391964,2105.4,2103.2,30.0]
[1772055342964,1.18736642,2105.5,2103.7,2.49391964]
[1772055343168,1.18736642,2105.5,2104.3,2.49391964]
[1772055343368,2.49391964,2107.3,2105.1,2.49391964]
[1772055343541,1.18623962,2107.5,2105.8,30.0]
[1772055343743,0.00877415,2109.0,2106.3,2.49391964]
[1772055343945,2.49391964,2108.4,2106.4,30.3059542]
[1772055344145,2.49391964,2107.0,2105.5,0.26082857]
[1772055344366,0.4998,2105.1,2102.3,30.0]
[1772055344574,2.49391964,2104.3,2102.3,30.0]
[1772055344767,2.49391964,2103.9,2101.8,30.0]
[1772055344961,1.569,2103.8,2101.8,30.0]
[1772055345161,2.49391964,2104.4,2102.2,2.49391964]
[1772055345381,2.49391964,2103.6,2101.8,30.0]
[1772055345556,1.651,2104.3,2102.3,30.0]
[1772055345756,1.651,2104.3,2102.2,2.49391964]
[1772055346053,0.0998,2104.2,2102.3,30.0]
[1772055346279,3.68151167,2105.1,2102.5,30.0]
[1772055346478,0.0998,2104.4,2102.5,14.326]
[1772055346682,1.648,2104.5,2102.9,30.0]
[1772055346886,1.648,2104.5,2102.9,9.904]
[1772055347067,1.648,2104.5,2102.9,5.345]
[1772055347382,1.647,2104.9,2103.3,30.0]
[1772055347867,1.18759203,2105.1,2103.7,30.0]
[1772055348201,1.18759203,2105.1,2103.8,1.18832588]
[1772055348388,1.18759203,2105.1,2103.9,30.0]
[1772055348576,1.18759203,2105.1,2103.8,1.18832588]
[1772055348577,1.18759203,2105.1,2102.7,2.49391964]
[1772055348881,1.18759203,2105.1,2102.3,30.0]
[1772055348882,2.49391964,2104.1,2102.3,30.0]
[1772055349089,2.49391964,2104.5,2102.3,30.0]
[1772055349286,2.49391964,2103.7,2101.8,1.18945665]
[1772055349489,1.644,2103.7,2101.9,30.0]
[1772055349789,2.49391964,2104.5,2102.2,2.91]
[1772055350080,0.07,2104.3,2102.2,2.91]
[1772055350257,1.18815645,2104.1,2102.6,30.0]
[1772055350459,1.18815645,2104.1,2102.5,2.49391964]
[1772055350460,0.002,2104.9,2103.3,2.49391964]
[1772055350667,0.002,2104.9,2103.4,30.0]
[1772055351070,0.002,2104.9,2103.4,22.347]
[1772055351269,0.002,2104.9,2103.0,30.0]
[1772055351584,2.49591964,2104.9,2103.0,30.0]
[1772055351887,2.49591964,2104.9,2102.8,30.0]
[1772055352107,2.49591964,2104.9,2103.2,30.0]
[1772055352108,0.002,2104.9,2103.2,30.0]
[1772055352311,1.18970487,2104.9,2103.3,3.596]
[1772055352519,1.18970487,2104.9,2103.4,2.49391964]
[1772055352819,1.18702815,2106.1,2104.3,30.0]
[1772055353513,6.38511262,2106.5,2104.6,30.0]
[1772055353514,1.18685909,2106.5,2104.6,30.0]
[1772055353721,1.18685909,2106.5,2104.2,1.703]
[1772055353722,1.18685909,2106.5,2105.0,30.0]
[1772055353884,1.18685909,2106.5,2104.4,30.0]
[1772055354083,2.82185909,2106.5,2104.4,30.0]
[1772055354279,2.82185909,2106.5,2104.4,1.1]
[1772055354280,2.49391964,2105.8,2104.4,1.1]
[1772055354489,1.18685909,2106.5,2104.4,1.1]
[1772055354713,2.49391964,2106.0,2103.7,30.08192]
[1772055355012,4.12691964,2106.0,2104.0,30.0]
[1772055355214,1.18685909,2106.5,2104.0,30.0]
[1772055355413,4.74721101,2106.9,2103.6,1.18843886]
[1772055355414,2.49391964,2108.3,2106.0,2.49391964]
[1772055355605,4.12791964,2108.3,2106.1,30.0]
[1772055355785,2.49391964,2107.5,2105.1,2.49391964]
[1772055355985,2.49391964,2107.1,2105.2,30.0]
[1772055356214,1.633,2107.4,2105.5,2.49391964]
[1772055356215,1.1862959,2107.4,2105.5,2.49391964]
[1772055356516,1.1862959,2107.4,2105.3,1.18747921]
[1772055356517,1.1862959,2107.4,2106.0,30.0]
[1772055356883,1.1862959,2107.4,2105.3,1.18747921]
[1772055356884,2.49391964,2107.2,2105.7,6.251]
[1772055357190,2.49391964,2107.2,2105.0,1.7]
[1772055357191,2.49391964,2106.8,2104.8,1.1877613]
[1772055357592,2.49391964,2106.8,2104.9,19.986233]
[1772055357893,1.1862959,2107.4,2104.8,1.1877613]
[1772055357894,2.49391964,2107.3,2105.5,2.49391964]
[1772055358094,2.49391964,2108.1,2106.0,19.986233]
[1772055358298,1.628,2108.1,2106.2,19.986233]
[1772055358525,2.49391964,2108.3,2106.2,19.986233]
[1772055358884,2.49391964,2108.7,2106.3,2.49391964]
[1772055359084,1.627,2108.6,2106.1,1.18702815]
[1772055359284,1.627,2108.6,2105.1,30.0]
[1772055359285,19.986233,2107.4,2105.1,30.0]
[1772055359538,2.49391964,2107.1,2105.1,30.0]
[1772055359718,2.49391964,2107.2,2105.1,10.224]
[1772055359917,16.77814538,2107.1,2105.5,2.49391964]
[1772055360134,0.10849609,2108.9,2107.2,30.0]
[1772055360318,0.10849609,2108.9,2107.5,2.49391964]
[1772055360629,0.10849609,2108.9,2107.3,1.1863522]
[1772055360630,0.10849609,2108.9,2107.6,10.66164612]
[1772055360933,0.10849609,2108.9,2107.6,30.0]
[1772055361137,1.29396392,2108.9,2107.6,30.0]
[1772055361317,1.29396392,2108.9,2107.4,30.0]
[1772055361921,1.29396392,2108.9,2107.6,30.0]
[1772055362139,1.29396392,2108.9,2107.0,1.703]
[1772055362331,1.18562079,2108.6,2107.2,0.3202961]
[1772055362526,1.18562079,2108.6,2107.2,24.4232961]
[1772055362835,4.74248316,2108.8,2107.3,30.0]
[1772055362836,1.18550834,2108.8,2107.3,30.0]
[1772055363009,1.18550834,2108.8,2107.1,3.68032851]
[1772055363010,1.29396683,2108.9,2107.6,30.0]
[1772055363208,0.10849609,2108.9,2107.6,0.31104213]
[1772055363516,0.10849609,2108.9,2107.8,30.0]
[1772055363716,1.29396489,2108.9,2107.7,0.33326276]
[1772055363912,1.29396489,2108.9,2107.9,0.33326276]
[1772055364112,1.29396489,2108.9,2107.6,30.0]
[1772055364113,1.29394883,2108.9,2107.6,30.0]
[1772055364420,1.2939517,2108.9,2107.6,1.18615211]
[1772055364622,0.10849609,2108.9,2107.6,1.18615211]
[1772055364810,0.10849609,2108.9,2107.8,29.9992]
[1772055365010,0.002,2108.7,2107.9,11.484]
[1772055365215,0.002,2108.7,2107.8,30.0]
[1772055365419,1.18528351,2109.2,2108.0,0.36259693]
[1772055365618,0.002,2108.9,2107.9,30.36259693]
[1772055365817,0.002,2108.9,2108.0,30.0]
[1772055366018,2.49591964,2108.9,2106.7,2.49391964]
[1772055366242,0.002,2108.9,2107.6,31.18618333]
[1772055366544,0.00799697,2109.9,2108.9,10.963]
[1772055366742,0.00799697,2109.9,2108.1,30.0]
[1772055366743,1.19290137,2109.9,2108.1,30.0]
[1772055366919,1.19290137,2109.9,2108.2,1.704]
[1772055367138,1e-08,2109.9,2108.9,30.0]
[1772055367468,1.21376628,2112.0,2109.8,2.49391964]
[1772055367638,2.49391964,2111.3,2109.0,0.63925998]
[1772055367833,8.6955252,2112.0,2108.7,30.0]
[1772055368044,2.49391964,2110.5,2108.7,30.0]
[1772055368368,1.21376817,2112.0,2109.5,9.953416]
[1772055368564,0.097114,2111.4,2109.5,9.953416]
[1772055368742,2.49391964,2110.9,2109.1,3.385]
[1772055369062,6.300331,2110.8,2109.1,3.385]
[1772055369260,2.49391964,2111.5,2109.5,9.953416]
[1772055369434,0.097114,2110.9,2108.9,0.28788983]
[1772055369638,4.73514167,2111.9,2108.9,0.28788983]
[1772055369639,2.49391964,2110.7,2109.0,9.953416]
[1772055369841,2.59103364,2110.7,2108.8,9.953416]
[1772055370042,0.097114,2110.5,2108.8,9.953416]
[1772055370242,1.18460955,2110.4,2108.9,1.18545213]
[1772055370444,0.1634211,2112.1,2109.0,9.953416]
[1772055370645,0.097114,2111.6,2109.4,9.953416]
[1772055370843,1.18376817,2111.9,2109.4,9.953416]
[1772055371049,2.49391964,2111.6,2109.5,11.655416]
[1772055371245,0.097114,2111.5,2109.6,9.953416]
[1772055371435,1.18376817,2111.9,2109.5,9.953416]
[1772055371639,1.18376817,2111.9,2110.3,9.953416]
[1772055371839,0.10849609,2114.1,2111.4,9.953416]
[1772055372140,1.18259224,2114.0,2111.4,9.953416]
[1772055372341,0.1634211,2116.3,2112.8,2.49391964]
[1772055372546,0.769,2120.0,2117.2,0.24693938]
[1772055372764,10.97009697,2126.7,2117.2,0.18693938]
[1772055372963,1.045,2118.9,2113.9,1.87957297]
[1772055373145,0.18693938,2116.4,2113.9,1.87957297]
[1772055373470,1.41620881,2118.4,2113.1,0.27834149]
[1772055373671,7.48175892,2117.5,2113.7,2.49391964]
[1772055373850,1.41620881,2118.4,2114.5,2.49391964]
[1772055374190,1.41620881,2118.4,2114.2,9.953416]
[1772055374191,1.682,2118.3,2115.1,9.953416]
[1772055374356,2.49391964,2118.3,2115.9,9.953416]
[1772055374555,1.17985747,2118.9,2115.3,9.953416]
[1772055374756,1.17985747,2118.9,2115.1,0.15281326]
[1772055374950,2.44391964,2117.5,2113.6,10.032336]
[1772055375155,1.17985747,2118.9,2113.0,1.775]
[1772055375156,18.841,2118.8,2113.9,9.950416]
[1772055375456,30.18685624,2118.2,2113.4,2.012]
[1772055375651,4.532,2118.7,2112.2,1.775]
[1772055375652,0.40148664,2117.8,2112.2,9.950416]
[1772055375845,0.08192,2117.8,2113.6,9.950416]
[1772055376078,2.49391964,2116.8,2114.5,0.18685624]
[1772055376283,2.49391964,2117.6,2115.4,9.950416]
[1772055376480,2.49391964,2117.6,2115.4,0.33238733]
[1772055376695,2.49391964,2117.2,2115.6,9.950416]
[1772055376854,1.18058179,2117.6,2113.2,11.13345593]
[1772055376855,2.49391964,2116.0,2113.2,11.13345593]
[1772055377191,1.18058179,2117.6,2113.1,10.35043996]
[1772055377192,2.49391964,2114.8,2113.1,10.35043996]
[1772055377485,2.49391964,2115.4,2113.3,9.950416]
[1772055377692,2.49391964,2115.7,2113.4,0.40002396]
[1772055377862,2.49391964,2117.0,2115.4,0.56803987]
[1772055378051,2.49391964,2117.0,2114.9,1.18208898]
[1772055378052,1.18097217,2116.9,2114.9,1.18208898]
[1772055378253,1.18097217,2116.9,2115.1,9.950416]
[1772055378482,2.49391964,2116.0,2115.0,0.40002396]
[1772055378660,2.49391964,2116.0,2114.3,9.950416]
[1772055378863,1.18097217,2116.9,2114.4,0.29074733]
[1772055378864,2.49391964,2116.3,2114.4,0.29074733]
[1772055379179,7.48175892,2117.5,2114.4,0.29074733]
[1772055379180,0.002,2118.1,2115.3,0.08192]
[1772055379380,0.002,2118.1,2116.7,10.46870851]
[1772055379568,0.002,2118.1,2116.9,2.49391964]
[1772055379769,0.002,2118.1,2117.1,9.950416]
[1772055379971,4.71776,2119.7,2116.8,0.18685624]
[1772055380173,4.71776,2119.7,2117.3,9.950416]
[1772055380174,2.49391964,2118.7,2117.3,9.950416]
[1772055380354,2.49391964,2118.9,2116.5,0.08192]
[1772055380554,0.00876093,2119.0,2117.0,0.30154233]
[1772055380756,2.49391964,2120.0,2118.9,1.01932412]
[1772055381068,1.34246794,2120.4,2117.6,1.781]
[1772055381271,1.34246794,2120.4,2118.3,9.890274]
[1772055381581,0.08192,2120.3,2117.4,0.33044568]
[1772055381762,0.08192,2120.3,2117.5,9.890274]
[1772055382117,0.08192,2120.3,2117.6,1.18058179]
[1772055382118,1.17980179,2119.0,2117.6,1.18058179]
[1772055382261,1.17980179,2119.0,2117.6,9.890274]
[1772055382577,2.49391964,2118.8,2117.7,0.96913113]
[1772055382753,1.17907843,2120.3,2118.9,0.45913474]
[1772055382951,1.17907843,2120.3,2118.4,0.31711207]
[1772055383191,1.17907843,2120.3,2117.6,9.890274]
[1772055383192,0.1634211,2120.4,2118.0,9.890274]
[1772055383396,0.00799697,2121.1,2121.0,1.43181683]
[1772055383554,1.18664971,2121.1,2118.5,9.890274]
[1772055383754,0.69164971,2121.1,2118.2,0.35469541]
[1772055384063,0.11648184,2124.5,2120.8,4.25905024]
[1772055384264,4.70439879,2125.7,2121.2,0.42380822]
[1772055384581,1.69899697,2126.7,2120.9,1.17874487]
[1772055384582,30.0,2126.6,2120.9,1.17874487]
[1772055384886,0.1327104,2126.2,2120.9,1.17874487]
[1772055385074,30.0,2125.9,2120.9,1.17874487]
[1772055385279,1.87957297,2125.7,2119.5,4.71801555]
[1772055385470,0.39048281,2125.8,2123.0,2.49391964]
[1772055385672,0.77660606,2126.7,2124.7,0.08192]
[1772055385878,4.62970709,2126.8,2126.3,2.49391964]
[1772055386075,1.41346085,2130.4,2126.8,0.63363374]
[1772055386076,1e-08,2129.6,2126.8,0.63363374]
[1772055386274,0.39,2139.6,2129.3,2.49391964]
[1772055386275,0.18435259,2138.9,2129.3,2.49391964]
[1772055386495,0.39,2139.6,2129.3,2.49391964]
[1772055386496,0.766,2135.6,2129.3,2.49391964]
[1772055386698,1.41064614,2135.7,2129.5,0.18685624]
[1772055386901,1.40404367,2136.7,2130.7,0.45078934]
[1772055387223,0.69909979,2136.6,2133.8,2.49391964]
[1772055387367,14.96756365,2138.0,2134.0,12.4695982]
[1772055387696,6.67903625,2138.0,2134.1,0.01206722]
[1772055387902,0.0087345,2139.0,2134.1,0.28015495]
[1772055388099,1.71,2141.9,2138.0,0.41956125]
[1772055388308,0.01,2140.0,2138.1,0.765]
[1772055388601,0.1628263,2145.3,2138.1,0.39052124]
[1772055388762,4.66953968,2141.6,2140.5,2.49391964]
[1772055389100,2.49391964,2146.1,2140.2,0.36585956]
[1772055389276,1.417,2147.8,2140.6,1.416]
[1772055389471,28.18021454,2171.0,2140.7,0.36281346]
[1772055389472,1.705,2148.3,2140.7,0.36281346]
[1772055389665,3.80463159,2148.9,2140.6,1.40237702]
[1772055389666,0.767,2148.8,2140.6,1.40237702]
[1772055389865,15.97911874,2147.9,2138.0,0.47781928]
[1772055390063,0.43253057,2147.8,2137.7,0.26043479]
[1772055390294,0.43253057,2147.8,2133.7,0.00335]
[1772055390295,2.49391964,2147.7,2143.9,2.49391964]
[1772055390495,0.003,2148.8,2146.0,2.49391964]
[1772055390665,15.41618969,2149.9,2147.9,0.64845367]
[1772055390870,1.39756218,2155.4,2143.6,0.00334]
[1772055390871,0.38418988,2150.8,2143.6,0.00334]
[1772055391074,1.39756218,2155.4,2139.3,0.00335]
[1772055391075,0.83675207,2149.8,2139.3,0.00335]
[1772055391311,0.11892525,2149.6,2139.4,0.61269762]
[1772055391529,0.11892525,2149.6,2139.7,4.0]
[1772055391808,18.5785924,2149.5,2136.1,0.80499231]
[1772055391970,0.29787448,2149.4,2139.8,0.34535852]
[1772055392171,7.48175892,2142.8,2136.3,0.3135827]
[1772055392506,0.36279683,2143.7,2139.2,1.40153187]
[1772055392803,3.586,2143.6,2135.6,0.762]
[1772055393097,11.2407661,2147.7,2135.8,3.990274]
[1772055393098,30.0,2143.4,2135.8,3.990274]
[1772055393419,3.37834622,2137.0,2134.7,1.17111732]
[1772055393581,3.37834622,2137.5,2134.7,1.17111732]
[1772055393914,3.37834622,2136.7,2132.8,3.37834622]
[1772055394087,3.37834622,2136.7,2132.0,1.17259028]
[1772055394088,3.37834622,2136.1,2132.4,3.37834622]
[1772055394281,1.695,2136.8,2131.9,2.95866157]
[1772055394282,13.51338488,2136.2,2131.9,2.95866157]
[1772055394482,13.51338488,2136.2,2131.8,1.40698097]
[1772055394483,3.37834622,2135.2,2131.8,1.40698097]
[1772055394707,3.37834622,2135.5,2131.8,1.17267464]
[1772055394907,0.34546366,2135.6,2132.9,3.37834622]
[1772055395117,5.5761248,2136.1,2134.3,3.37834622]
[1772055395405,1.694,2140.9,2134.3,3.37714622]
[1772055395577,1.4052707,2141.9,2133.4,2.52613236]
[1772055395782,1.4052707,2141.9,2139.2,1.22228375]
[1772055396093,1.4052707,2141.9,2135.5,0.761]
[1772055396094,2.990274,2140.8,2135.5,0.761]
[1772055396282,2.990274,2140.8,2134.5,0.7]
[1772055396283,3.37834622,2137.7,2132.9,0.94807401]
[1772055396478,1.693,2138.7,2132.9,11.07103866]
[1772055396710,10.13503866,2136.2,2132.1,0.25964235]
[1772055396909,3.37834622,2137.3,2131.0,1.782]
[1772055397080,2.990274,2136.9,2131.0,1.782]
[1772055397280,0.781,2137.2,2130.9,0.22638668]
[1772055397598,2.990274,2135.3,2129.4,0.761]
[1772055397907,3.37834622,2134.9,2131.6,3.37834622]
[1772055398081,0.3832395,2135.2,2131.7,1.17275747]
[1772055398082,0.80008582,2135.2,2131.7,1.17275747]
[1772055398278,3.37834622,2134.0,2131.7,1.17275747]
[1772055398513,3.37834622,2136.4,2131.8,10.13503866]
[1772055398711,1.69,2137.1,2131.8,16.8917311]
[1772055399009,3.37834622,2138.4,2132.0,4.69042021]
[1772055399311,2.990274,2139.4,2132.1,0.38948133]
[1772055399480,2.990274,2138.5,2132.1,0.38948133]
[1772055399686,3.37834622,2137.7,2134.2,3.37834622]
[1772055399998,1.16915306,2138.3,2134.8,1.17106988]
[1772055400182,3.37834622,2137.9,2134.8,1.17106988]
[1772055400381,3.37834622,2139.5,2135.9,3.37834622]
[1772055400580,3.37834622,2139.5,2136.2,3.37834622]
[1772055400581,4.54689815,2139.4,2136.2,3.37834622]
[1772055400877,3.37834622,2138.9,2135.1,3.37834622]
[1772055401078,1.688,2139.3,2134.8,1.17106988]
[1772055401079,3.37834622,2137.4,2134.8,1.17106988]
[1772055401285,3.37834622,2136.4,2133.0,1.17205813]
[1772055401483,10.13503866,2136.2,2133.0,1.17205813]
[1772055401713,10.13503866,2136.2,2130.8,0.1628263]
[1772055401714,3.37834622,2133.9,2130.9,1.17321319]
[1772055402008,1.1716187,2133.8,2130.8,1.33607049]
[1772055402210,1.17079567,2135.3,2131.8,3.37834622]
[1772055402512,3.37834622,2136.7,2133.8,3.37834622]
[1772055402713,8.05495848,2138.4,2130.8,1.33607049]
[1772055402714,4.67372345,2139.7,2133.3,0.18685624]
[1772055403081,4.67372345,2139.7,2133.5,0.18685624]
[1772055403082,2.990274,2139.2,2133.5,0.18685624]
[1772055403280,2.990274,2138.0,2131.8,1.81059936]
[1772055403482,3.37834622,2136.5,2133.5,0.18685624]
[1772055403786,3.37834622,2137.0,2133.9,3.37834622]
[1772055404034,3.37834622,2138.1,2135.1,3.37834622]
[1772055404234,3.37834622,2137.1,2133.9,3.37834622]
[1772055404533,3.37834622,2136.1,2134.2,0.35952687]
[1772055404821,3.37834622,2137.3,2133.7,3.37834622]
[1772055405007,3.37834622,2136.8,2133.3,4.55023953]
[1772055405204,3.37834622,2137.8,2134.8,3.37834622]
[1772055405406,1.684,2139.3,2135.1,3.37834622]
[1772055405612,2.990274,2139.5,2135.1,3.37834622]
[1772055405829,2.990274,2138.9,2134.4,0.18685624]
[1772055405982,2.990274,2138.6,2134.3,0.08192]
[1772055406189,3.28157315,2140.5,2134.5,0.08192]
[1772055406430,3.28157315,2140.5,2134.4,0.28815301]
[1772055406431,3.37834622,2137.8,2134.4,4.54963557]
[1772055406732,0.08192,2136.8,2133.7,1.17167361]
[1772055406888,0.35472883,2137.7,2133.7,1.17167361]
[1772055407222,3.37834622,2135.8,2133.7,1.17167361]
[1772055407422,0.26877624,2135.6,2133.5,0.001]
[1772055407587,3.37834622,2134.7,2132.0,1.17260787]
[1772055408105,0.3878955,2135.5,2132.9,3.37834622]
[1772055408295,0.08192,2135.7,2132.5,1.17233294]
[1772055408505,3.37834622,2135.3,2132.5,1.17233294]
[1772055408902,0.18685624,2134.7,2132.5,1.17233294]
[1772055409114,0.18685624,2134.4,2131.5,4.55122916]
[1772055409401,0.18685624,2134.4,2131.7,3.37834622]
[1772055409595,0.18685624,2134.4,2131.5,1.17288294]
[1772055409596,0.18685624,2134.0,2131.5,1.17288294]